[Event "Late-Titled-Tuesday-Blitz-May-07-2024"]
[Site "Chess.com"]
[Date "2024.05.07"]
[Round "2"]
[White "Yerkinio"]
[Black "laskakid"]
[Result "1-0"]
[WhiteElo "2675"]
[BlackElo "2408"]
[TimeControl "180+1"]
[EndTime "14:18:03 PDT"]
[Termination "Yerkinio won on time"]

1. e4 {[%clk 0:02:55.8]} 1... d6 {[%clk 0:02:59.8]} 2. d4 {[%clk 0:02:55.3]}
2... Nf6 {[%clk 0:03:00.1]} 3. Nc3 {[%clk 0:02:55.9]} 3... e5 {[%clk 0:03:00.4]}
4. Nf3 {[%clk 0:02:54.3]} 4... Nbd7 {[%clk 0:02:59.6]} 5. Bc4 {[%clk 0:02:54.9]}
5... Be7 {[%clk 0:02:59.6]} 6. O-O {[%clk 0:02:55.5]} 6... O-O {[%clk
0:02:59.6]} 7. Re1 {[%clk 0:02:56.2]} 7... c6 {[%clk 0:02:59.7]} 8. a4 {[%clk
0:02:56.9]} 8... h6 {[%clk 0:02:59.1]} 9. h3 {[%clk 0:02:56.3]} 9... Re8 {[%clk
0:02:58.7]} 10. Ba2 {[%clk 0:02:41.9]} 10... a5 {[%clk 0:02:57.6]} 11. Nh4
{[%clk 0:02:36.3]} 11... exd4 {[%clk 0:02:48.8]} 12. Qxd4 {[%clk 0:02:37.2]}
12... Ne5 {[%clk 0:02:48.5]} 13. Bf4 {[%clk 0:02:32.3]} 13... g5 {[%clk
0:02:42.5]} 14. Bxe5 {[%clk 0:02:32.4]} 14... dxe5 {[%clk 0:02:41.9]} 15. Qxe5
{[%clk 0:02:24]} 15... gxh4 {[%clk 0:02:32.5]} 16. Qf4 {[%clk 0:02:23.8]} 16...
Kg7 {[%clk 0:02:13.7]} 17. Rad1 {[%clk 0:02:19]} 17... Qb6 {[%clk 0:02:03.1]}
18. e5 {[%clk 0:01:33.9]} 18... Nd5 {[%clk 0:02:02]} 19. Bxd5 {[%clk 0:01:28]}
19... cxd5 {[%clk 0:01:58.8]} 20. Nxd5 {[%clk 0:01:28.9]} 20... Qg6 {[%clk
0:01:42.2]} 21. Nxe7 {[%clk 0:00:57.1]} 21... Rxe7 {[%clk 0:01:38.9]} 22. Qxh4
{[%clk 0:00:57.1]} 22... Rd7 {[%clk 0:01:26.6]} 23. Rxd7 {[%clk 0:00:44.6]}
23... Bxd7 {[%clk 0:01:26.4]} 24. Re3 {[%clk 0:00:45.5]} 24... Kh7 {[%clk
0:01:00.9]} 25. Rg3 {[%clk 0:00:45.5]} 25... Qe6 {[%clk 0:00:53.2]} 26. Qe4+
{[%clk 0:00:39.5]} 26... f5 {[%clk 0:00:40.5]} 27. Qxb7 {[%clk 0:00:36.2]} 27...
Rg8 {[%clk 0:00:32.3]} 28. Rxg8 {[%clk 0:00:29.9]} 28... Kxg8 {[%clk 0:00:32.5]}
29. Qb8+ {[%clk 0:00:30.3]} 29... Kf7 {[%clk 0:00:30.5]} 30. b3 {[%clk 0:00:28]}
30... Bc6 {[%clk 0:00:29.2]} 31. Qc7+ {[%clk 0:00:27.3]} 31... Kg6 {[%clk
0:00:28.1]} 32. Qxa5 {[%clk 0:00:26.6]} 32... f4 {[%clk 0:00:23.3]} 33. f3
{[%clk 0:00:22.3]} 33... Kf5 {[%clk 0:00:18.5]} 34. Qc3 {[%clk 0:00:20.6]} 34...
Qd5 {[%clk 0:00:15.7]} 35. Kh2 {[%clk 0:00:20.4]} 35... Ke6 {[%clk 0:00:14.5]}
36. a5 {[%clk 0:00:18.9]} 36... Bb7 {[%clk 0:00:13.3]} 37. b4 {[%clk 0:00:18.5]}
37... Qxe5 {[%clk 0:00:10.7]} 38. Qc4+ {[%clk 0:00:19.2]} 38... Kf6 {[%clk
0:00:10.5]} 39. a6 {[%clk 0:00:15]} 39... Ba8 {[%clk 0:00:08.6]} 40. b5 {[%clk
0:00:14.6]} 40... Qd6 {[%clk 0:00:07.4]} 41. c3 {[%clk 0:00:13.4]} 41... Qb6
{[%clk 0:00:06.6]} 42. Qd4+ {[%clk 0:00:10.6]} 42... Kg5 {[%clk 0:00:05.5]} 43.
Qxb6 {[%clk 0:00:10]} 1-0

[Event "Late-Titled-Tuesday-Blitz-May-07-2024"]
[Site "Chess.com"]
[Date "2024.05.07"]
[Round "2"]
[White "nabukatnezarr"]
[Black "penguingm1"]
[Result "0-1"]
[WhiteElo "2609"]
[BlackElo "2895"]
[TimeControl "180+1"]
[EndTime "14:18:06 PDT"]
[Termination "penguingm1 won on time"]

1. d4 {[%clk 0:03:00.9]} 1... d5 {[%clk 0:02:57.7]} 2. c4 {[%clk 0:03:01.3]}
2... e6 {[%clk 0:02:58.3]} 3. Nc3 {[%clk 0:02:59.6]} 3... Be7 {[%clk 0:02:58.4]}
4. Nf3 {[%clk 0:02:57.8]} 4... Nf6 {[%clk 0:02:58.8]} 5. cxd5 {[%clk 0:02:58]}
5... exd5 {[%clk 0:02:57.7]} 6. Bg5 {[%clk 0:02:58.1]} 6... c6 {[%clk
0:02:58.4]} 7. e3 {[%clk 0:02:58.3]} 7... Bf5 {[%clk 0:02:58.7]} 8. Bd3 {[%clk
0:02:56.4]} 8... Bxd3 {[%clk 0:02:59.1]} 9. Qxd3 {[%clk 0:02:57.3]} 9... Nbd7
{[%clk 0:02:59.7]} 10. O-O {[%clk 0:02:57]} 10... O-O {[%clk 0:03:00.3]} 11. h3
{[%clk 0:02:56.4]} 11... Re8 {[%clk 0:03:00.1]} 12. Rab1 {[%clk 0:02:54.9]}
12... a5 {[%clk 0:03:00.2]} 13. Rfc1 {[%clk 0:02:52.4]} 13... Ne4 {[%clk
0:02:49.6]} 14. Bxe7 {[%clk 0:02:53.3]} 14... Qxe7 {[%clk 0:02:49.8]} 15. a3
{[%clk 0:02:51.3]} 15... Nd6 {[%clk 0:02:50]} 16. Nd2 {[%clk 0:02:48.5]} 16...
h5 {[%clk 0:02:47.8]} 17. Na4 {[%clk 0:02:47]} 17... Qf6 {[%clk 0:02:33]} 18.
Nc5 {[%clk 0:02:40.8]} 18... Nxc5 {[%clk 0:02:29.1]} 19. Rxc5 {[%clk 0:02:36.9]}
19... a4 {[%clk 0:02:23.5]} 20. Rf1 {[%clk 0:02:28.1]} 20... Re6 {[%clk
0:02:20.4]} 21. Qc2 {[%clk 0:02:21]} 21... Qe7 {[%clk 0:02:15.1]} 22. Rc3 {[%clk
0:02:15.9]} 22... Rg6 {[%clk 0:02:14.6]} 23. Kh1 {[%clk 0:02:13.8]} 23... Qg5
{[%clk 0:02:10.2]} 24. Rg1 {[%clk 0:02:10]} 24... Rf6 {[%clk 0:01:56.2]} 25. Nf3
{[%clk 0:01:56.7]} 25... Qh6 {[%clk 0:01:53.4]} 26. Qd1 {[%clk 0:01:46.9]} 26...
Ne4 {[%clk 0:01:50.3]} 27. Rc2 {[%clk 0:01:47.6]} 27... g5 {[%clk 0:01:47.7]}
28. Rf1 {[%clk 0:01:48.3]} 28... g4 {[%clk 0:01:45.8]} 29. Ne5 {[%clk
0:01:48.9]} 29... g3 {[%clk 0:01:16.9]} 30. f4 {[%clk 0:01:39.9]} 30... Re6
{[%clk 0:01:09.3]} 31. Qf3 {[%clk 0:01:28.6]} 31... f6 {[%clk 0:01:06.8]} 32.
Nd3 {[%clk 0:01:28.5]} 32... Re7 {[%clk 0:00:56.8]} 33. Kg1 {[%clk 0:01:19.3]}
33... Rae8 {[%clk 0:00:53.6]} 34. Re2 {[%clk 0:01:15.9]} 34... h4 {[%clk
0:00:50.1]} 35. f5 {[%clk 0:01:13.2]} 35... Ng5 {[%clk 0:00:39.8]} 36. Qf4
{[%clk 0:01:02.5]} 36... Re4 {[%clk 0:00:38.3]} 37. Qc7 {[%clk 0:00:58.8]} 37...
Rxe3 {[%clk 0:00:20]} 38. Rxe3 {[%clk 0:00:59.7]} 38... Nxh3+ {[%clk 0:00:19]}
39. gxh3 {[%clk 0:00:05.5]} 39... Qxe3+ {[%clk 0:00:19.1]} 40. Nf2 {[%clk
0:00:05.6]} 40... Kh8 {[%clk 0:00:10.2]} 41. Qxb7 {[%clk 0:00:05.4]} 41... gxf2+
{[%clk 0:00:08.4]} 42. Rxf2 {[%clk 0:00:03.6]} 42... Qg3+ {[%clk 0:00:08.5]} 43.
Kf1 {[%clk 0:00:04.4]} 43... Qxh3+ {[%clk 0:00:08]} 44. Rg2 {[%clk 0:00:03.6]}
44... Qf3+ {[%clk 0:00:08.3]} 45. Kg1 {[%clk 0:00:02]} 45... Re1+ {[%clk
0:00:08.6]} 46. Kh2 {[%clk 0:00:02.7]} 46... Qf4+ {[%clk 0:00:09.2]} 0-1

[Event "Late-Titled-Tuesday-Blitz-May-07-2024"]
[Site "Chess.com"]
[Date "2024.05.07"]
[Round "2"]
[White "bipe137"]
[Black "jefferyx"]
[Result "0-1"]
[WhiteElo "2682"]
[BlackElo "3120"]
[TimeControl "180+1"]
[EndTime "14:18:08 PDT"]
[Termination "jefferyx won by checkmate"]

1. d4 {[%clk 0:03:00.9]} 1... Nf6 {[%clk 0:02:59]} 2. c4 {[%clk 0:02:58]} 2...
c5 {[%clk 0:02:59]} 3. d5 {[%clk 0:02:58.1]} 3... b5 {[%clk 0:02:59.6]} 4. Nf3
{[%clk 0:02:57]} 4... g6 {[%clk 0:02:58.6]} 5. Qc2 {[%clk 0:02:55.4]} 5... b4
{[%clk 0:02:54.3]} 6. e4 {[%clk 0:02:54.5]} 6... d6 {[%clk 0:02:54.8]} 7. e5
{[%clk 0:02:49.8]} 7... dxe5 {[%clk 0:02:46.5]} 8. Nxe5 {[%clk 0:02:49.8]} 8...
Bg7 {[%clk 0:02:47.2]} 9. Nd2 {[%clk 0:02:34.6]} 9... O-O {[%clk 0:02:32.6]} 10.
Ndf3 {[%clk 0:02:34.3]} 10... e6 {[%clk 0:02:31.7]} 11. dxe6 {[%clk 0:02:33.6]}
11... Bxe6 {[%clk 0:02:32.6]} 12. Be3 {[%clk 0:02:28.1]} 12... Nfd7 {[%clk
0:02:23.8]} 13. Rd1 {[%clk 0:02:21.7]} 13... Bf5 {[%clk 0:02:05.8]} 14. Qc1
{[%clk 0:02:17.9]} 14... Qf6 {[%clk 0:01:57.6]} 15. Nd3 {[%clk 0:02:03.4]} 15...
Re8 {[%clk 0:01:46.6]} 16. Be2 {[%clk 0:01:54.9]} 16... Bxd3 {[%clk 0:01:21.4]}
17. Bxd3 {[%clk 0:01:49.1]} 17... Qxb2 {[%clk 0:01:21.8]} 18. Qxb2 {[%clk
0:01:47.3]} 18... Bxb2 {[%clk 0:01:22.7]} 19. O-O {[%clk 0:01:47.1]} 19... a5
{[%clk 0:01:22.6]} 20. Bc2 {[%clk 0:01:45.3]} 20... a4 {[%clk 0:01:20.3]} 21.
Rd6 {[%clk 0:01:38.7]} 21... b3 {[%clk 0:01:17.5]} 22. Bb1 {[%clk 0:01:32.5]}
22... Ne5 {[%clk 0:00:50.3]} 23. Nd2 {[%clk 0:01:25.4]} 23... bxa2 {[%clk
0:00:45.5]} 24. Bxa2 {[%clk 0:01:26.3]} 24... Na6 {[%clk 0:00:32.8]} 25. h3
{[%clk 0:00:56]} 25... Nb4 {[%clk 0:00:28.5]} 26. Bb1 {[%clk 0:00:55.7]} 26...
a3 {[%clk 0:00:29]} 27. Bxc5 {[%clk 0:00:49.5]} 27... a2 {[%clk 0:00:26.4]} 28.
Bxa2 {[%clk 0:00:49.9]} 28... Nxa2 {[%clk 0:00:27.3]} 29. f4 {[%clk 0:00:43]}
29... Rec8 {[%clk 0:00:24.8]} 30. fxe5 {[%clk 0:00:32.7]} 30... Rxc5 {[%clk
0:00:24.7]} 31. e6 {[%clk 0:00:32.5]} 31... fxe6 {[%clk 0:00:19.8]} 32. Rxe6
{[%clk 0:00:31.6]} 32... Bd4+ {[%clk 0:00:17.7]} 33. Kh1 {[%clk 0:00:31.7]}
33... Nc3 {[%clk 0:00:17.6]} 34. Re7 {[%clk 0:00:29.3]} 34... Rf5 {[%clk
0:00:13.5]} 35. Rfe1 {[%clk 0:00:27.8]} 35... Rf7 {[%clk 0:00:11.5]} 36. R7e6
{[%clk 0:00:25]} 36... Raf8 {[%clk 0:00:10.8]} 37. Nf3 {[%clk 0:00:25.1]} 37...
Bf6 {[%clk 0:00:10.1]} 38. R1e3 {[%clk 0:00:24.4]} 38... Na4 {[%clk 0:00:09.7]}
39. Rc6 {[%clk 0:00:23.8]} 39... Re7 {[%clk 0:00:07.8]} 40. Ra3 {[%clk
0:00:23.3]} 40... Nb2 {[%clk 0:00:05.6]} 41. Raa6 {[%clk 0:00:23.3]} 41... Bg7
{[%clk 0:00:05.2]} 42. c5 {[%clk 0:00:21.6]} 42... Nd3 {[%clk 0:00:05.7]} 43.
Ra3 {[%clk 0:00:19.6]} 43... Ne5 {[%clk 0:00:05.7]} 44. Nxe5 {[%clk 0:00:19.5]}
44... Rf1+ {[%clk 0:00:05.6]} 45. Kh2 {[%clk 0:00:18.9]} 45... Bxe5+ {[%clk
0:00:06.2]} 46. g3 {[%clk 0:00:19.5]} 46... Rf2+ {[%clk 0:00:06.8]} 47. Kg1
{[%clk 0:00:19.6]} 47... Rc2 {[%clk 0:00:07.7]} 48. Rd3 {[%clk 0:00:12.1]} 48...
Bd4+ {[%clk 0:00:07.7]} 49. Kf1 {[%clk 0:00:12.3]} 49... Rf2+ {[%clk 0:00:07.7]}
50. Kg1 {[%clk 0:00:12.9]} 50... Re1# {[%clk 0:00:07.6]} 0-1

[Event "Late-Titled-Tuesday-Blitz-May-07-2024"]
[Site "Chess.com"]
[Date "2024.05.07"]
[Round "2"]
[White "Magicmaster17"]
[Black "MusicCityMaster"]
[Result "1-0"]
[WhiteElo "2910"]
[BlackElo "2440"]
[TimeControl "180+1"]
[EndTime "14:18:09 PDT"]
[Termination "Magicmaster17 won by resignation"]

1. d4 {[%clk 0:02:49.9]} 1... Nf6 {[%clk 0:02:58.9]} 2. Bf4 {[%clk 0:02:49.4]}
2... d6 {[%clk 0:02:58]} 3. Nf3 {[%clk 0:02:49.4]} 3... Nbd7 {[%clk 0:02:58.3]}
4. Nc3 {[%clk 0:02:48.9]} 4... c5 {[%clk 0:02:55.9]} 5. e3 {[%clk 0:02:46.3]}
5... a6 {[%clk 0:02:55.4]} 6. a4 {[%clk 0:02:43.8]} 6... b6 {[%clk 0:02:55.2]}
7. d5 {[%clk 0:02:40.4]} 7... Bb7 {[%clk 0:02:50.2]} 8. Bc4 {[%clk 0:02:39.8]}
8... g6 {[%clk 0:02:49]} 9. O-O {[%clk 0:02:39.3]} 9... Bg7 {[%clk 0:02:49.3]}
10. h3 {[%clk 0:02:39.3]} 10... O-O {[%clk 0:02:49.5]} 11. e4 {[%clk 0:02:39.3]}
11... Nh5 {[%clk 0:02:36.3]} 12. Bh2 {[%clk 0:02:38.8]} 12... Ne5 {[%clk
0:02:36.3]} 13. Be2 {[%clk 0:02:36.9]} 13... Nxf3+ {[%clk 0:02:30.6]} 14. Bxf3
{[%clk 0:02:36.9]} 14... Nf6 {[%clk 0:02:28.2]} 15. Qd2 {[%clk 0:02:28.9]} 15...
Nd7 {[%clk 0:02:24.6]} 16. Be2 {[%clk 0:02:28.5]} 16... f5 {[%clk 0:02:14.8]}
17. exf5 {[%clk 0:02:26.8]} 17... Rxf5 {[%clk 0:02:14.1]} 18. Bg4 {[%clk
0:02:26.4]} 18... Rf8 {[%clk 0:02:10.5]} 19. Rae1 {[%clk 0:02:24]} 19... Ne5
{[%clk 0:02:07.3]} 20. Be6+ {[%clk 0:02:23.6]} 20... Kh8 {[%clk 0:02:07.5]} 21.
b3 {[%clk 0:02:18.7]} 21... Bc8 {[%clk 0:02:07.5]} 22. f4 {[%clk 0:02:11.9]}
22... Bxe6 {[%clk 0:02:07]} 23. fxe5 {[%clk 0:02:12.1]} 23... Bf5 {[%clk
0:01:55.3]} 24. e6 {[%clk 0:02:10.8]} 24... h5 {[%clk 0:01:45.4]} 25. Ne2 {[%clk
0:02:04.1]} 25... b5 {[%clk 0:01:39.6]} 26. Ng3 {[%clk 0:02:03]} 26... Qe8
{[%clk 0:01:36.2]} 27. Nxf5 {[%clk 0:02:00.7]} 27... gxf5 {[%clk 0:01:36]} 28.
Qg5 {[%clk 0:01:59.8]} 28... Bd4+ {[%clk 0:01:24.7]} 29. Kh1 {[%clk 0:01:58.8]}
29... Rf6 {[%clk 0:01:17.7]} 30. Rxf5 {[%clk 0:01:57.1]} 30... Qg6 {[%clk
0:01:16.4]} 31. Qxh5+ {[%clk 0:01:47.3]} 31... Qxh5 {[%clk 0:01:16.6]} 32. Rxh5+
{[%clk 0:01:48.2]} 32... Kg7 {[%clk 0:01:16.6]} 33. Rg5+ {[%clk 0:01:48.3]}
33... Kh6 {[%clk 0:01:15.9]} 34. Rg4 {[%clk 0:01:43.7]} 34... Raf8 {[%clk
0:01:15.2]} 35. Rh4+ {[%clk 0:01:22.7]} 35... Kg5 {[%clk 0:01:13.2]} 36. Rg4+
{[%clk 0:01:23]} 36... Kh6 {[%clk 0:01:13.5]} 37. Rxd4 {[%clk 0:01:13.3]} 37...
cxd4 {[%clk 0:01:12.9]} 38. Bg1 {[%clk 0:01:13.2]} 38... Rf1 {[%clk 0:01:12.1]}
39. Re4 {[%clk 0:01:12.4]} 39... Rc1 {[%clk 0:01:06.7]} 40. Kh2 {[%clk 0:01:08]}
40... Rxc2 {[%clk 0:01:06.3]} 41. Bxd4 {[%clk 0:01:07.6]} 41... Rg8 {[%clk
0:01:03.2]} 42. Rh4+ {[%clk 0:01:07.1]} 42... Kg6 {[%clk 0:01:01]} 43. axb5
{[%clk 0:01:03.3]} 43... axb5 {[%clk 0:01:00.6]} 44. Rg4+ {[%clk 0:00:56.2]}
44... Kh7 {[%clk 0:01:00.7]} 45. Rh4+ {[%clk 0:00:56.6]} 45... Kg6 {[%clk
0:01:01.2]} 46. Rf4 {[%clk 0:00:57.3]} 46... Kh5 {[%clk 0:00:58.6]} 47. Bf2
{[%clk 0:00:56.9]} 47... Rd2 {[%clk 0:00:54.4]} 48. g4+ {[%clk 0:00:56]} 48...
Kh6 {[%clk 0:00:52.6]} 49. Rf7 {[%clk 0:00:54.6]} 49... Rg7 {[%clk 0:00:45.7]}
50. Kg3 {[%clk 0:00:44]} 50... Rxf7 {[%clk 0:00:41.8]} 51. Be3+ {[%clk
0:00:43.8]} 51... Kg7 {[%clk 0:00:42.2]} 52. Bxd2 {[%clk 0:00:43.9]} 52... Rf1
{[%clk 0:00:39.8]} 53. h4 {[%clk 0:00:39.3]} 53... Rd1 {[%clk 0:00:39.8]} 54.
Bg5 {[%clk 0:00:38.5]} 54... Kf8 {[%clk 0:00:37.6]} 55. Bh6+ {[%clk 0:00:38.2]}
55... Ke8 {[%clk 0:00:36]} 56. g5 {[%clk 0:00:38.3]} 56... Rxd5 {[%clk
0:00:36.6]} 57. g6 {[%clk 0:00:38.7]} 57... Rd1 {[%clk 0:00:34.3]} 58. g7 {[%clk
0:00:34.9]} 58... Rg1+ {[%clk 0:00:33.9]} 59. Kf3 {[%clk 0:00:32.1]} 59... Rg6
{[%clk 0:00:32.1]} 60. h5 {[%clk 0:00:31.5]} 60... Rg1 {[%clk 0:00:30.6]} 61.
Kf4 {[%clk 0:00:31.8]} 61... Kd8 {[%clk 0:00:26.9]} 62. Bg5 {[%clk 0:00:31.7]}
62... Rf1+ {[%clk 0:00:25]} 63. Ke4 {[%clk 0:00:31.7]} 63... Re1+ {[%clk
0:00:23.6]} 64. Kf5 {[%clk 0:00:31.7]} 64... Rf1+ {[%clk 0:00:22.3]} 65. Kg6
{[%clk 0:00:31.9]} 1-0

[Event "Late-Titled-Tuesday-Blitz-May-07-2024"]
[Site "Chess.com"]
[Date "2024.05.07"]
[Round "2"]
[White "BilodeauA"]
[Black "Nf3c5"]
[Result "1-0"]
[WhiteElo "2910"]
[BlackElo "2617"]
[TimeControl "180+1"]
[EndTime "14:18:11 PDT"]
[Termination "BilodeauA won by resignation"]

1. e4 {[%clk 0:02:59.2]} 1... c5 {[%clk 0:02:51.9]} 2. Nf3 {[%clk 0:02:59.5]}
2... Nc6 {[%clk 0:02:52.2]} 3. Nc3 {[%clk 0:02:57]} 3... e5 {[%clk 0:02:44.8]}
4. Bc4 {[%clk 0:02:57]} 4... Be7 {[%clk 0:02:45.2]} 5. d3 {[%clk 0:02:57]} 5...
d6 {[%clk 0:02:45.9]} 6. Nd2 {[%clk 0:02:57.4]} 6... h6 {[%clk 0:02:46]} 7. Nf1
{[%clk 0:02:57.3]} 7... Nf6 {[%clk 0:02:46.6]} 8. Ne3 {[%clk 0:02:57.5]} 8...
Be6 {[%clk 0:02:47.2]} 9. O-O {[%clk 0:02:57.3]} 9... O-O {[%clk 0:02:47.8]} 10.
a3 {[%clk 0:02:57.1]} 10... Nd7 {[%clk 0:02:48.3]} 11. h3 {[%clk 0:02:54.7]}
11... Nb6 {[%clk 0:02:48.7]} 12. Bd5 {[%clk 0:02:51.4]} 12... Bg5 {[%clk
0:02:46]} 13. Bxe6 {[%clk 0:02:29.9]} 13... fxe6 {[%clk 0:02:43.7]} 14. Ne2
{[%clk 0:02:25.4]} 14... Nd4 {[%clk 0:02:32.9]} 15. Ng3 {[%clk 0:02:22.9]} 15...
Bf4 {[%clk 0:02:28.6]} 16. Nh5 {[%clk 0:02:03.2]} 16... Qg5 {[%clk 0:02:11.2]}
17. c3 {[%clk 0:01:56.9]} 17... Nc6 {[%clk 0:01:50.8]} 18. g3 {[%clk 0:01:48.4]}
18... Bxe3 {[%clk 0:01:49.1]} 19. Bxe3 {[%clk 0:01:47.9]} 19... Qg6 {[%clk
0:01:46.5]} 20. b3 {[%clk 0:01:31.1]} 20... Nd7 {[%clk 0:01:44.8]} 21. Kh2
{[%clk 0:01:28.2]} 21... Nf6 {[%clk 0:01:39.3]} 22. Nxf6+ {[%clk 0:01:27.3]}
22... Rxf6 {[%clk 0:01:40.2]} 23. f4 {[%clk 0:01:23.9]} 23... Raf8 {[%clk
0:01:32.9]} 24. Qd2 {[%clk 0:01:21.9]} 24... Ne7 {[%clk 0:01:16.5]} 25. Rf2
{[%clk 0:01:21.1]} 25... Qe8 {[%clk 0:01:01.6]} 26. fxe5 {[%clk 0:01:17.9]}
26... Rxf2+ {[%clk 0:01:01.4]} 27. Bxf2 {[%clk 0:01:18.8]} 27... Qf7 {[%clk
0:00:52.5]} 28. Bg1 {[%clk 0:01:17.4]} 28... Nc6 {[%clk 0:00:50.1]} 29. exd6
{[%clk 0:01:01.4]} 29... Ne5 {[%clk 0:00:49.5]} 30. Qf4 {[%clk 0:01:02.1]} 30...
Nf3+ {[%clk 0:00:45.2]} 31. Kg2 {[%clk 0:00:53.8]} 31... Qd7 {[%clk 0:00:26.7]}
32. Qe3 {[%clk 0:00:51.1]} 32... Qxd6 {[%clk 0:00:26.7]} 33. Rf1 {[%clk
0:00:51.5]} 33... Ne5 {[%clk 0:00:25.8]} 34. Rxf8+ {[%clk 0:00:50.8]} 34... Qxf8
{[%clk 0:00:26.5]} 35. d4 {[%clk 0:00:46.7]} 35... cxd4 {[%clk 0:00:26.3]} 36.
cxd4 {[%clk 0:00:47.6]} 36... Nc6 {[%clk 0:00:26.3]} 37. d5 {[%clk 0:00:45.9]}
37... Ne5 {[%clk 0:00:23.7]} 38. Qf4 {[%clk 0:00:42.4]} 38... Qd6 {[%clk
0:00:23.4]} 39. Bd4 {[%clk 0:00:40.1]} 39... Nf7 {[%clk 0:00:21.5]} 40. Qxd6
{[%clk 0:00:39.8]} 40... Nxd6 {[%clk 0:00:22.2]} 41. dxe6 {[%clk 0:00:33.1]}
41... a6 {[%clk 0:00:14.1]} 42. Kf3 {[%clk 0:00:32]} 42... Nb5 {[%clk
0:00:08.6]} 43. e7 {[%clk 0:00:26.1]} 43... Nxd4+ {[%clk 0:00:04.5]} 44. Ke3
{[%clk 0:00:26]} 44... Nc2+ {[%clk 0:00:03.4]} 45. Kd2 {[%clk 0:00:25.2]} 45...
Kf7 {[%clk 0:00:02.8]} 46. Kxc2 {[%clk 0:00:25.5]} 46... Kxe7 {[%clk 0:00:03.3]}
47. Kd3 {[%clk 0:00:26.3]} 47... Ke6 {[%clk 0:00:03.8]} 48. Kd4 {[%clk
0:00:27.1]} 48... Kd6 {[%clk 0:00:04]} 49. e5+ {[%clk 0:00:27.3]} 49... Ke6
{[%clk 0:00:04.6]} 50. Ke4 {[%clk 0:00:27.9]} 50... b6 {[%clk 0:00:04.8]} 51. g4
{[%clk 0:00:23.8]} 51... g6 {[%clk 0:00:05.2]} 52. h4 {[%clk 0:00:23.8]} 52...
h5 {[%clk 0:00:03.1]} 53. g5 {[%clk 0:00:23.5]} 53... a5 {[%clk 0:00:02.4]} 54.
a4 {[%clk 0:00:23.8]} 54... Ke7 {[%clk 0:00:02.3]} 55. Kd5 {[%clk 0:00:24.4]}
55... Kd7 {[%clk 0:00:03.2]} 56. e6+ {[%clk 0:00:24.8]} 56... Ke7 {[%clk
0:00:04.1]} 57. Ke5 {[%clk 0:00:25.4]} 1-0

[Event "Late-Titled-Tuesday-Blitz-May-07-2024"]
[Site "Chess.com"]
[Date "2024.05.07"]
[Round "2"]
[White "imdvb6307"]
[Black "Navyblue1"]
[Result "1/2-1/2"]
[WhiteElo "2509"]
[BlackElo "2230"]
[TimeControl "180+1"]
[EndTime "14:18:12 PDT"]
[Termination "Game drawn by repetition"]

1. d4 {[%clk 0:03:00.9]} 1... Nf6 {[%clk 0:02:45.8]} 2. Nf3 {[%clk 0:03:00]}
2... g6 {[%clk 0:02:42.1]} 3. c4 {[%clk 0:02:59.7]} 3... Bg7 {[%clk 0:02:41.6]}
4. Nc3 {[%clk 0:03:00.2]} 4... O-O {[%clk 0:02:41.3]} 5. e4 {[%clk 0:02:59.6]}
5... d6 {[%clk 0:02:41]} 6. Be2 {[%clk 0:02:59.9]} 6... Qe8 {[%clk 0:02:39.8]}
7. O-O {[%clk 0:02:39.7]} 7... e5 {[%clk 0:02:38.9]} 8. dxe5 {[%clk 0:02:39.6]}
8... dxe5 {[%clk 0:02:38.4]} 9. Nd5 {[%clk 0:02:40.2]} 9... Na6 {[%clk
0:02:31.9]} 10. Nxf6+ {[%clk 0:02:39.9]} 10... Bxf6 {[%clk 0:02:30.9]} 11. Be3
{[%clk 0:02:40]} 11... Be6 {[%clk 0:02:19.3]} 12. a3 {[%clk 0:02:26.8]} 12... c5
{[%clk 0:02:00.9]} 13. Qb3 {[%clk 0:02:12.2]} 13... Qc6 {[%clk 0:01:53.6]} 14.
Ng5 {[%clk 0:01:40.5]} 14... Bd7 {[%clk 0:01:22.4]} 15. Rad1 {[%clk 0:01:35.3]}
15... Nc7 {[%clk 0:01:13.4]} 16. Qd3 {[%clk 0:00:51.2]} 16... Rfd8 {[%clk
0:00:58.7]} 17. Qd6 {[%clk 0:00:50.9]} 17... b6 {[%clk 0:00:29.2]} 18. f3 {[%clk
0:00:47.3]} 18... h6 {[%clk 0:00:20.6]} 19. Qxc6 {[%clk 0:00:45.2]} 19... Bxc6
{[%clk 0:00:21.5]} 20. Nh3 {[%clk 0:00:45]} 20... Kg7 {[%clk 0:00:20.7]} 21. b4
{[%clk 0:00:39.3]} 21... Ne6 {[%clk 0:00:20.4]} 22. bxc5 {[%clk 0:00:39]} 22...
bxc5 {[%clk 0:00:20.1]} 23. Nf2 {[%clk 0:00:38.8]} 23... Nd4 {[%clk 0:00:20.3]}
24. Rfe1 {[%clk 0:00:37]} 24... Ba4 {[%clk 0:00:19.3]} 25. Rb1 {[%clk
0:00:24.1]} 25... Rab8 {[%clk 0:00:19.9]} 26. Rxb8 {[%clk 0:00:22.9]} 26... Rxb8
{[%clk 0:00:20.8]} 27. Bxd4 {[%clk 0:00:18.2]} 27... cxd4 {[%clk 0:00:20.6]} 28.
Nd3 {[%clk 0:00:17.6]} 28... Bc2 {[%clk 0:00:18.5]} 29. Rc1 {[%clk 0:00:17.3]}
29... Bxd3 {[%clk 0:00:18.7]} 30. Bxd3 {[%clk 0:00:17.7]} 30... Rb3 {[%clk
0:00:18.8]} 31. Bf1 {[%clk 0:00:17.2]} 31... Rxa3 {[%clk 0:00:18.5]} 32. c5
{[%clk 0:00:17.6]} 32... Bd8 {[%clk 0:00:18.6]} 33. c6 {[%clk 0:00:17.7]} 33...
Bc7 {[%clk 0:00:18.9]} 34. Bc4 {[%clk 0:00:15.7]} 34... Ra5 {[%clk 0:00:17.9]}
35. Bd5 {[%clk 0:00:15.8]} 35... Rb5 {[%clk 0:00:17.7]} 36. Ra1 {[%clk
0:00:15.6]} 36... a5 {[%clk 0:00:17.7]} 37. Kf1 {[%clk 0:00:16.1]} 37... Rb6
{[%clk 0:00:17.7]} 38. Ra2 {[%clk 0:00:15.1]} 38... Kf8 {[%clk 0:00:18.1]} 39.
Ke2 {[%clk 0:00:15.4]} 39... Ke7 {[%clk 0:00:17.7]} 40. Kd3 {[%clk 0:00:15]}
40... Rb4 {[%clk 0:00:17.8]} 41. h4 {[%clk 0:00:11.5]} 41... f6 {[%clk
0:00:17.7]} 42. g4 {[%clk 0:00:11.1]} 42... Kf8 {[%clk 0:00:17.3]} 43. h5 {[%clk
0:00:11]} 43... g5 {[%clk 0:00:17.5]} 44. Rc2 {[%clk 0:00:08.3]} 44... Ke7
{[%clk 0:00:17.9]} 45. Rc4 {[%clk 0:00:08.6]} 45... Kd6 {[%clk 0:00:17.2]} 46.
Rxb4 {[%clk 0:00:08.8]} 46... axb4 {[%clk 0:00:17.8]} 47. Kc4 {[%clk 0:00:09.3]}
47... Ba5 {[%clk 0:00:18.3]} 48. Kb5 {[%clk 0:00:08.6]} 48... Bc7 {[%clk
0:00:17.9]} 49. Kxb4 {[%clk 0:00:08.5]} 49... Bd8 {[%clk 0:00:17.8]} 50. Kb5
{[%clk 0:00:08]} 50... Bc7 {[%clk 0:00:18]} 51. Bc4 {[%clk 0:00:06.7]} 51... Bb8
{[%clk 0:00:17.8]} 52. Bd3 {[%clk 0:00:06.3]} 52... Bc7 {[%clk 0:00:18.1]} 53.
Bc4 {[%clk 0:00:06.4]} 53... Bd8 {[%clk 0:00:18.4]} 54. Bd3 {[%clk 0:00:05.4]}
54... Bc7 {[%clk 0:00:19]} 55. Bc4 {[%clk 0:00:05.9]} 1/2-1/2